[Event "Panchenko Memorial-B 2021"]
[Site "Chelyabinsk"]
[Date "2021.09.14"]
[Round "2.1"]
[White "Bodnaruk, Anastasia"]
[Black "Yakimova, Mariya"]
[Result "0-1"]
[ECO "B90"]
[WhiteElo "2425"]
[BlackElo "2185"]
[Annotator "ChessBase"]
[PlyCount "92"]
[EventDate "2021.09.13"]
[EventType "swiss"]
[EventCountry "RUS"]
[SourceTitle "playchess.com"]
[Source "ChessBase"]
[SourceQuality "1"]
[TimeControl "5400+30"]

1. e4 {[%emt 0:00:03]} c5 {[%emt 0:00:06]} 2. Nf3 {[%emt 0:00:10]} d6 {[%emt 0:00:14]} 3. d4 {[%emt 0:00:07]} cxd4 {[%emt 0:00:05]} 4. Nxd4 {[%emt 0:00:02]} Nf6 {[%emt 0:00:05]} 5. Nc3 {[%emt 0:00:03]} a6 {[%emt 0:00:04]} 6. Nb3 {[%emt 0:01:07]} Nc6 {[%emt 0:07:23]} 7. Be2 {[%emt 0:05:01]} e6 {[%emt 0:09:57]} 8. O-O {[%emt 0:03:28]} Be7 {[%emt 0:00:12]} 9. Be3 {[%emt 0:01:14]} b5 {[%emt 0:03:41]} 10. a3 {[%emt 0:02:32]} O-O {[%emt 0:01:42]} 11. f4 {[%emt 0:01:16]} Bb7 {[%emt 0:02:17]} 12. Bf3 {[%emt 0:02:41]} Rc8 {[%emt 0:04:49]} 13. g4 {[%emt 0:04:58]} b4 {[%emt 0:11:18]} 14. axb4 {[%emt 0:03:17]} Nxb4 {[%emt 0:00:23]} 15. g5 {[%emt 0:03:11]} Nd7 {[%emt 0:00:30]} 16. Qe2 {[%emt 0:20:54]} e5 {[%emt 0:06:09]} 17. Rfd1 {[%emt 0:04:01]} Re8 {[%emt 0:08:21]} 18. Qf2 {[%emt 0:09:15]} exf4 {[%emt 0:09:56]} 19. Bxf4 {[%emt 0:01:44]} Bxg5 {[%emt 0:02:37]} 20. Bxd6 {[%emt 0:02:33]} Rxc3 {[%emt 0:05:04]} 21. bxc3 {[%emt 0:01:21]} Nd5 {[%emt 0:00:10]} 22. Rd3 {[%emt 0:10:30]} Be3 {[%emt 0:00:45]} 23. Rxe3 {[%emt 0:00:05]} Qg5+ {[%emt 0:00:07]} 24. Bg3 {[%emt 0:01:36]} Nxe3 {[%emt 0:00:15]} 25. Ra5 {[%emt 0:03:14]} Ne5 {[%emt 0:10:02]} 26. Bh1 {[%emt 0:06:47]} N3c4 {[%emt 0:02:52]} 27. Ra1 {[%emt 0:03:32]} h5 {[%emt 0:01:44]} 28. Bg2 {[%emt 0:04:49]} Ng4 {[%emt 0:04:11]} 29. Qc5 {[%emt 0:00:05]} Nce5 {[%emt 0:02:18]} 30. h4 {[%emt 0:02:12]} Qg6 {[%emt 0:01:15]} 31. Re1 {[%emt 0:01:08]} Rc8 {[%emt 0:02:12]} 32. Qb4 {[%emt 0:01:07]} Ba8 {[%emt 0:01:19]} 33. Nd4 {[%emt 0:00:24]} Kh7 {[%emt 0:02:45]} 34. Qe7 {[%emt 0:01:08]} f6 {[%emt 0:01:44]} 35. Qb4 {[%emt 0:01:44]} Qf7 {[%emt 0:00:13]} 36. Ra1 {[%emt 0:00:33]} Qa7 {[%emt 0:01:01]} 37. Qd6 {[%emt 0:00:35]} a5 {[%emt 0:00:22]} 38. Kh1 {[%emt 0:00:28]} a4 {[%emt 0:00:32]} 39. Qb4 {[%emt 0:00:25]} Rc4 {[%emt 0:00:20]} 40. Qf8 {[%emt 0:00:23]} Ng6 {[%emt 0:00:43]} 41. Qe8 {[%emt 0:00:25]} Rxc3 {[%emt 0:00:27]} 42. Rxa4 {[%emt 0:00:42]} Qb7 {[%emt 0:00:12]} 43. Nb5 {[%emt 0:00:37]} Rc8 {[%emt 0:00:30]} 44. Ra7 {[%emt 0:00:32]} Rxe8 {[%emt 0:00:48]} 45. Rxb7 {[%emt 0:00:03]} Bxb7 {[%emt 0:00:04]} 46. Nd6 {[%emt 0:00:08]} Re7 {[%emt 0:00:05]} 0-1

[Event "Panchenko Memorial-B 2021"]
[Site "Chelyabinsk"]
[Date "2021.09.14"]
[Round "2.2"]
[White "Zhapova, Yana"]
[Black "Guseva, Marina"]
[Result "1-0"]
[ECO "B51"]
[WhiteElo "2212"]
[BlackElo "2418"]
[Annotator "ChessBase"]
[PlyCount "57"]
[EventDate "2021.09.13"]
[EventType "swiss"]
[EventCountry "RUS"]
[SourceTitle "playchess.com"]
[Source "ChessBase"]
[SourceQuality "1"]
[TimeControl "5400+30"]

1. e4 {[%emt 0:00:05]} c5 {[%emt 0:00:03]} 2. Nf3 {[%emt 0:00:13]} d6 {[%emt 0:00:03]} 3. Bb5+ {[%emt 0:00:13]} Nd7 {[%emt 0:00:03]} 4. Ba4 {[%emt 0:00:24]} a6 {[%emt 0:00:18]} 5. c4 {[%emt 0:00:13]} Ngf6 {[%emt 0:00:09]} 6. O-O {[%emt 0:00:12]} e6 {[%emt 0:00:14]} 7. Nc3 {[%emt 0:00:23]} Be7 {[%emt 0:00:05]} 8. d4 {[%emt 0:04:34]} cxd4 {[%emt 0:00:18]} 9. Qxd4 {[%emt 0:00:11]} O-O {[%emt 0:00:05]} 10. Rd1 {[%emt 0:01:00]} Qc7 {[%emt 0:00:06]} 11. Bxd7 {[%emt 0:02:28]} Bxd7 {[%emt 0:03:22]} 12. Bf4 {[%emt 0:00:07]} Bc6 {[%emt 0:18:50]} 13. Bxd6 {[%emt 0:00:46]} Bxd6 {[%emt 0:00:05]} 14. Qxd6 {[%emt 0:00:11]} Qxd6 {[%emt 0:01:36]} 15. Rxd6 {[%emt 0:00:08]} Bxe4 {[%emt 0:00:04]} 16. Ne5 {[%emt 0:00:51]} Rac8 {[%emt 0:03:07]} 17. Rad1 {[%emt 0:02:56]} Bc2 {[%emt 0:01:59]} 18. R1d4 {[%emt 0:03:35]} h6 {[%emt 0:06:29]} 19. Rb6 {[%emt 0:05:01]} Rc7 {[%emt 0:01:21]} 20. b4 {[%emt 0:06:56]} Ra8 {[%emt 0:11:00]} 21. f4 {[%emt 0:01:33]} Kf8 {[%emt 0:02:18]} 22. a4 {[%emt 0:05:51]} Ke7 {[%emt 0:04:36]} 23. a5 {[%emt 0:01:21]} g5 {[%emt 0:03:14]} 24. c5 {[%emt 0:12:05]} Bb3 {[%emt 0:06:45]} 25. Nc4 {[%emt 0:02:55]} Rb8 {[%emt 0:08:14]} 26. Rbd6 {[%emt 0:07:21]} Bxc4 {[%emt 0:05:17]} 27. Rxc4 {[%emt 0:00:08]} gxf4 {[%emt 0:01:29]} 28. Rxf4 {[%emt 0:00:12]} Rg8 {[%emt 0:00:05]} 29. Rxf6 {[%emt 0:00:27]} 1-0

[Event "Panchenko Memorial-B 2021"]
[Site "Chelyabinsk"]
[Date "2021.09.14"]
[Round "2.3"]
[White "Balabayeva, Xeniya"]
[Black "Nur-Mukhametova, Alisa"]
[Result "1-0"]
[ECO "B31"]
[WhiteElo "2318"]
[BlackElo "2170"]
[Annotator "ChessBase"]
[PlyCount "127"]
[EventDate "2021.09.13"]
[EventType "swiss"]
[EventCountry "RUS"]
[SourceTitle "playchess.com"]
[Source "ChessBase"]
[SourceQuality "1"]
[TimeControl "5400+30"]

1. e4 {[%emt 0:00:03]} c5 {[%emt 0:00:32]} 2. Nf3 {[%emt 0:00:08]} Nc6 {[%emt 0:00:36]} 3. Bb5 {[%emt 0:02:58]} g6 {[%emt 0:01:17]} 4. O-O {[%emt 0:00:51]} Bg7 {[%emt 0:00:07]} 5. Re1 {[%emt 0:00:34]} e5 {[%emt 0:00:34]} 6. a4 {[%emt 0:04:03]} Nge7 {[%emt 0:00:20]} 7. Nc3 {[%emt 0:01:40]} O-O {[%emt 0:03:20]} 8. d3 {[%emt 0:05:03]} d6 {[%emt 0:05:53]} 9. h3 {[%emt 0:04:37]} h6 {[%emt 0:02:45]} 10. Bc4 {[%emt 0:10:00]} Kh7 {[%emt 0:04:03]} 11. Nd5 {[%emt 0:05:41]} Nxd5 {[%emt 0:06:18]} 12. Bxd5 {[%emt 0:02:33]} Ne7 {[%emt 0:06:30]} 13. Ba2 {[%emt 0:09:32]} f5 {[%emt 0:03:23]} 14. Bd2 {[%emt 0:02:55]} a5 {[%emt 0:05:30]} 15. c3 {[%emt 0:06:39]} Bd7 {[%emt 0:02:45]} 16. Bc4 {[%emt 0:03:38]} Qc7 {[%emt 0:08:40]} 17. Bb5 {[%emt 0:05:40]} Nc6 {[%emt 0:17:27]} 18. Rc1 {[%emt 0:10:07]} Qd8 {[%emt 0:03:50]} 19. Qe2 {[%emt 0:03:21]} f4 {[%emt 0:05:36]} 20. Rb1 {[%emt 0:04:20]} g5 {[%emt 0:01:32]} 21. Nh2 {[%emt 0:02:13]} Be6 {[%emt 0:10:44]} 22. Bc4 {[%emt 0:01:22]} Bc8 {[%emt 0:01:06]} 23. f3 {[%emt 0:07:43]} Ne7 {[%emt 0:00:40]} 24. Kf2 {[%emt 0:01:19]} Ng8 {[%emt 0:01:19]} 25. Bxg8+ {[%emt 0:01:45]} Rxg8 {[%emt 0:00:22]} 26. Rh1 {[%emt 0:01:01]} Be6 {[%emt 0:05:02]} 27. c4 {[%emt 0:00:28]} h5 {[%emt 0:00:28]} 28. Bc3 {[%emt 0:01:52]} Qd7 {[%emt 0:00:28]} 29. b3 {[%emt 0:00:49]} Bf6 {[%emt 0:00:32]} 30. Ke1 {[%emt 0:01:06]} Kg7 {[%emt 0:00:40]} 31. Kd2 {[%emt 0:00:32]} Kf7 {[%emt 0:00:35]} 32. Rbg1 {[%emt 0:00:33]} Rh8 {[%emt 0:02:41]} 33. Kc2 {[%emt 0:00:39]} b6 {[%emt 0:00:11]} 34. Be1 {[%emt 0:00:54]} b5 {[%emt 0:01:11]} 35. axb5 {[%emt 0:00:42]} a4 {[%emt 0:00:13]} 36. bxa4 {[%emt 0:00:25]} Rxa4 {[%emt 0:00:02]} 37. Bc3 {[%emt 0:00:09]} Ra2+ {[%emt 0:00:29]} 38. Bb2 {[%emt 0:00:05]} Qa7 {[%emt 0:00:46]} 39. Ra1 {[%emt 0:01:22]} Qa4+ {[%emt 0:00:00]} 40. Kb1 {[%emt 0:00:07]} Ra8 {[%emt 0:00:42]} 41. Rxa2 {[%emt 0:00:06]} Qxa2+ {[%emt 0:00:06]} 42. Kc1 {[%emt 0:00:30]} Bd8 {[%emt 0:01:41]} 43. Qc2 {[%emt 0:00:37]} Ba5 {[%emt 0:00:30]} 44. Kd1 {[%emt 0:00:24]} Bb4 {[%emt 0:00:30]} 45. Ke2 {[%emt 0:01:09]} Qa7 {[%emt 0:00:30]} 46. Ra1 {[%emt 0:00:27]} Qb7 {[%emt 0:00:02]} 47. Ra4 {[%emt 0:00:15]} Ra5 {[%emt 0:00:58]} 48. Rxa5 {[%emt 0:00:16]} Bxa5 {[%emt 0:00:04]} 49. Bc3 {[%emt 0:00:39]} Bxc3 {[%emt 0:00:57]} 50. Qxc3 {[%emt 0:00:01]} Qa7 {[%emt 0:00:22]} 51. Qb2 {[%emt 0:00:12]} Bc8 {[%emt 0:00:25]} 52. Nf1 {[%emt 0:00:19]} g4 {[%emt 0:00:28]} 53. hxg4 {[%emt 0:00:06]} hxg4 {[%emt 0:00:03]} 54. Nd2 {[%emt 0:00:22]} g3 {[%emt 0:00:34]} 55. Qb1 {[%emt 0:00:22]} Kg7 {[%emt 0:00:43]} 56. Qh1 {[%emt 0:00:32]} Qe7 {[%emt 0:00:29]} 57. Nb3 {[%emt 0:01:05]} Be6 {[%emt 0:00:35]} 58. Na5 {[%emt 0:00:39]} Qa7 {[%emt 0:00:20]} 59. Qa1 {[%emt 0:00:13]} Qe7 {[%emt 0:01:01]} 60. b6 {[%emt 0:00:21]} Bc8 {[%emt 0:00:08]} 61. Qb1 {[%emt 0:01:09]} Bb7 {[%emt 0:00:30]} 62. Qb5 {[%emt 0:00:41]} Kf7 {[%emt 0:00:15]} 63. Nxb7 {[%emt 0:00:25]} Qxb7 {[%emt 0:00:01]} 64. Qa5 {[%emt 0:00:16]} 1-0

[Event "Panchenko Memorial-B 2021"]
[Site "Chelyabinsk"]
[Date "2021.09.14"]
[Round "2.4"]
[White "Kovanova, Baira"]
[Black "Strutinskaia, Galina"]
[Result "1-0"]
[ECO "B43"]
[WhiteElo "2310"]
[BlackElo "2164"]
[Annotator "NA"]
[PlyCount "67"]
[EventDate "2021.09.13"]
[EventType "swiss"]
[EventCountry "RUS"]
[SourceTitle "playchess.com"]
[Source "ChessBase"]
[SourceQuality "1"]
[TimeControl "5400+30"]

1. e4 {[%emt 0:00:03]} c5 {[%emt 0:00:05]} 2. Nf3 {[%emt 0:00:03]} e6 {[%emt 0:00:18]} 3. d4 {[%emt 0:00:47]} cxd4 {[%emt 0:00:06]} 4. Nxd4 {[%emt 0:00:03]} a6 {[%emt 0:00:35]} 5. Nc3 {[%emt 0:02:16]} b5 {[%emt 0:00:52]} 6. Bd3 {[%emt 0:02:11]} Bb7 {[%emt 0:01:29]} 7. O-O {[%emt 0:01:54]} Nc6 {[%emt 0:01:58]} 8. Nxc6 {[%emt 0:01:18]} Bxc6 {[%emt 0:00:53]} 9. Be3 {[%emt 0:10:08]} Nf6 {[%emt 0:05:37]} 10. e5 {[%emt 0:05:11]} Nd5 {[%emt 0:03:08]} 11. Nxd5 {[%emt 0:02:11]} Bxd5 {[%emt 0:00:15]} 12. a4 {[%emt 0:00:24]} b4 {[%emt 0:00:39]} 13. Qe2 {[%emt 0:06:25]} a5 {[%emt 0:01:42]} 14. Bc4 {[%emt 0:04:42]} Bc6 {[%emt 0:04:26]} 15. Bb5 {[%emt 0:02:49]} Qc7 {[%emt 0:05:39]} 16. Rfd1 {[%emt 0:07:02]} Be7 {[%emt 0:04:46]} 17. Bxc6 $11 {[%emt 0:07:06]} dxc6 {[%emt 0:04:30]} 18. Qc4 {[%emt 0:02:43]} O-O {[%emt 0:01:00]} 19. Bc5 {[%emt 0:00:35]} h6 {[%emt 0:11:07]} 20. Bd6 {[%emt 0:08:03]} Qb7 {[%emt 0:02:24]} 21. h3 {[%emt 0:04:52]} Rfc8 {[%emt 0:01:29]} 22. Rd3 {[%emt 0:05:59]} c5 {[%emt 0:07:01]} 23. Rad1 {[%emt 0:00:41]} Bg5 {[%emt 0:01:48]} 24. h4 {[%emt 0:09:10]} Bd8 {[%emt 0:01:28]} 25. Qf4 {[%emt 0:01:14]} f5 {[%emt 0:11:52]} 26. exf6 {[%emt 0:04:56]} Bxf6 {[%emt 0:00:07]} 27. Be5 {[%emt 0:00:13]} Rf8 {[%emt 0:04:09]} 28. Rd7 {[%emt 0:01:19]} Qc6 {[%emt 0:00:14]} 29. Rc7 {[%emt 0:01:32]} Qe8 {[%emt 0:04:37]} 30. Rdd7 {[%emt 0:01:29]} Qg6 {[%emt 0:00:09]} 31. h5 {[%emt 0:02:12]} Qg5 {[%emt 0:00:29]} 32. Qxg5 {[%emt 0:01:42]} hxg5 {[%emt 0:00:11]} 33. Bxf6 {[%emt 0:00:25]} Rxf6 {[%emt 0:00:15]} 34. Rxg7+ {[%emt 0:00:06]} 1-0

[Event "Panchenko Memorial-B 2021"]
[Site "Chelyabinsk"]
[Date "2021.09.14"]
[Round "2.5"]
[White "Nasyrova, Ekaterina"]
[Black "Charochkina, Daria"]
[Result "0-1"]
[ECO "A41"]
[WhiteElo "2205"]
[BlackElo "2307"]
[Annotator "ChessBase"]
[PlyCount "136"]
[EventDate "2021.09.13"]
[EventType "swiss"]
[EventCountry "RUS"]
[SourceTitle "playchess.com"]
[Source "ChessBase"]
[SourceQuality "1"]
[TimeControl "5400+30"]

1. d4 {[%emt 0:00:04]} d6 {[%emt 0:00:13]} 2. Nf3 {[%emt 0:00:13]} Nf6 {[%emt 0:00:06]} 3. c4 {[%emt 0:00:16]} g6 {[%emt 0:00:11]} 4. Nc3 {[%emt 0:00:15]} Bf5 {[%emt 0:00:19]} 5. Qb3 {[%emt 0:00:23]} b6 {[%emt 0:00:08]} 6. h3 {[%emt 0:01:15]} Bg7 {[%emt 0:00:14]} 7. g4 {[%emt 0:01:26]} Bd7 {[%emt 0:00:04]} 8. Bg2 {[%emt 0:01:59]} Nc6 {[%emt 0:00:30]} 9. Qc2 {[%emt 0:07:34]} O-O {[%emt 0:01:31]} 10. O-O {[%emt 0:00:47]} Na5 {[%emt 0:08:31]} 11. b3 {[%emt 0:21:28]} c5 {[%emt 0:00:52]} 12. Be3 {[%emt 0:01:09]} h5 {[%emt 0:17:32]} 13. g5 {[%emt 0:11:58]} Bf5 {[%emt 0:00:44]} 14. Qd2 {[%emt 0:03:21]} Ne4 {[%emt 0:00:29]} 15. Nxe4 {[%emt 0:00:11]} Bxe4 {[%emt 0:00:03]} 16. Rad1 {[%emt 0:00:15]} Rc8 {[%emt 0:07:43]} 17. Nh4 {[%emt 0:08:41]} Bxg2 {[%emt 0:28:40]} 18. Kxg2 {[%emt 0:02:21]} cxd4 {[%emt 0:00:31]} 19. Bxd4 {[%emt 0:00:25]} Bxd4 {[%emt 0:00:26]} 20. Qxd4 {[%emt 0:00:11]} Rc5 {[%emt 0:00:26]} 21. f4 {[%emt 0:03:10]} Nc6 {[%emt 0:09:07]} 22. Qe4 {[%emt 0:05:18]} Kh7 {[%emt 0:01:59]} 23. Rf3 {[%emt 0:11:53]} Qc8 {[%emt 0:07:46]} 24. Rd5 {[%emt 0:14:17]} Qe6 {[%emt 0:02:41]} 25. Re3 {[%emt 0:01:38]} Qxe4+ {[%emt 0:00:55]} 26. Rxe4 {[%emt 0:00:02]} a5 {[%emt 0:00:12]} 27. a3 {[%emt 0:00:23]} Kg7 {[%emt 0:03:33]} 28. Nf3 {[%emt 0:01:45]} Rc8 {[%emt 0:03:24]} 29. Ne1 {[%emt 0:01:38]} Kf8 {[%emt 0:01:29]} 30. Rd2 {[%emt 0:00:39]} b5 {[%emt 0:01:55]} 31. Nd3 {[%emt 0:00:26]} Rf5 {[%emt 0:00:09]} 32. Rc2 {[%emt 0:00:35]} Nd8 {[%emt 0:00:01]} 33. Rc1 {[%emt 0:00:19]} d5 {[%emt 0:01:08]} 34. cxd5 {[%emt 0:00:41]} Rxc1 {[%emt 0:00:08]} 35. Nxc1 {[%emt 0:00:01]} Rxd5 {[%emt 0:00:05]} 36. a4 {[%emt 0:00:49]} Ne6 {[%emt 0:01:14]} 37. axb5 {[%emt 0:00:21]} Rxb5 {[%emt 0:00:06]} 38. Ra4 {[%emt 0:00:50]} Nc5 {[%emt 0:01:16]} 39. Ra3 {[%emt 0:00:16]} Ke8 {[%emt 0:00:11]} 40. Kf3 {[%emt 0:00:27]} Kd7 {[%emt 0:01:08]} 41. e3 {[%emt 0:00:31]} Kc7 {[%emt 0:01:01]} 42. Ke2 {[%emt 0:00:42]} Kb6 {[%emt 0:00:25]} 43. Kd2 {[%emt 0:00:33]} e5 {[%emt 0:00:12]} 44. Kc2 {[%emt 0:00:32]} exf4 {[%emt 0:01:38]} 45. exf4 {[%emt 0:00:02]} Rb4 {[%emt 0:01:01]} 46. Ne2 {[%emt 0:00:24]} Ne6 {[%emt 0:00:02]} 47. Ra1 {[%emt 0:00:59]} Nxf4 {[%emt 0:00:44]} 48. Nc3 {[%emt 0:00:07]} Rd4 {[%emt 0:00:36]} 49. Rf1 {[%emt 0:00:13]} Nxh3 {[%emt 0:01:07]} 50. Rxf7 {[%emt 0:00:16]} Nxg5 {[%emt 0:00:16]} 51. Rf6+ {[%emt 0:00:10]} Kb7 {[%emt 0:00:29]} 52. Rxg6 {[%emt 0:00:07]} Nf3 {[%emt 0:00:18]} 53. Na4 {[%emt 0:01:16]} Rd5 {[%emt 0:00:32]} 54. Kc3 {[%emt 0:00:30]} Kc7 {[%emt 0:00:42]} 55. Rh6 {[%emt 0:00:08]} Kd8 {[%emt 0:00:43]} 56. Kc4 {[%emt 0:00:49]} Re5 {[%emt 0:00:01]} 57. Nc5 {[%emt 0:01:14]} Ke7 {[%emt 0:00:11]} 58. Nd3 {[%emt 0:00:36]} Rf5 {[%emt 0:00:32]} 59. Nc5 {[%emt 0:00:37]} h4 {[%emt 0:00:16]} 60. Ne4 {[%emt 0:00:26]} Re5 {[%emt 0:00:59]} 61. Kd3 {[%emt 0:00:28]} Rb5 {[%emt 0:00:19]} 62. Nd2 {[%emt 0:00:38]} Ne5+ {[%emt 0:01:02]} 63. Kd4 {[%emt 0:00:23]} Kd7 {[%emt 0:00:37]} 64. Rh7+ {[%emt 0:00:31]} Ke6 {[%emt 0:00:30]} 65. Rh6+ {[%emt 0:00:29]} Kf7 {[%emt 0:00:00]} 66. Ne4 {[%emt 0:00:30]} Nf3+ {[%emt 0:00:21]} 67. Kc4 {[%emt 0:00:36]} Rb4+ {[%emt 0:00:16]} 68. Kd3 {[%emt 0:00:20]} Ne5+ {[%emt 0:00:12]} 0-1

[Event "Panchenko Memorial-B 2021"]
[Site "Chelyabinsk"]
[Date "2021.09.18"]
[Round "6.3"]
[White "Zhapova, Yana"]
[Black "Lysenko, Margarita"]
[Result "1/2-1/2"]
[ECO "B51"]
[WhiteElo "2212"]
[BlackElo "2207"]
[Annotator "NA"]
[PlyCount "72"]
[EventDate "2021.09.13"]
[EventType "swiss"]
[EventCountry "RUS"]
[SourceTitle "playchess.com"]
[Source "ChessBase"]
[SourceQuality "1"]
[TimeControl "5400+30"]

1. e4 {[%emt 0:00:04]} c5 {[%emt 0:00:05]} 2. Nf3 {[%emt 0:00:10]} d6 {[%emt 0:00:12]} 3. Bb5+ {[%emt 0:00:12]} Nd7 {[%emt 0:00:26]} 4. d4 {[%emt 0:00:19]} cxd4 {[%emt 0:00:29]} 5. Nxd4 {[%emt 0:00:10]} Ngf6 {[%emt 0:00:35]} 6. Bd3 {[%emt 0:01:50]} Nc5 {[%emt 0:04:16]} 7. Nc3 {[%emt 0:00:11]} a6 {[%emt 0:01:05]} 8. a4 {[%emt 0:05:46]} e5 {[%emt 0:04:35]} 9. Nde2 {[%emt 0:02:32]} Be6 {[%emt 0:05:18]} 10. O-O {[%emt 0:04:15]} Be7 {[%emt 0:02:52]} 11. h3 {[%emt 0:02:17]} O-O {[%emt 0:25:50]} 12. f4 {[%emt 0:06:14]} Nxd3 {[%emt 0:03:22]} 13. cxd3 $11 {[%emt 0:09:09]} b5 {[%emt 0:11:02]} 14. Qe1 {[%emt 0:01:52]} Qb6+ {[%emt 0:18:29]} 15. Kh1 {[%emt 0:00:54]} b4 {[%emt 0:00:13]} 16. Nd1 {[%emt 0:00:32]} exf4 {[%emt 0:01:17]} 17. Nxf4 {[%emt 0:00:46]} Nd7 {[%emt 0:02:00]} 18. Ne3 {[%emt 0:09:42]} a5 {[%emt 0:00:29]} 19. Ned5 {[%emt 0:04:25]} Qd8 {[%emt 0:00:16]} 20. Be3 {[%emt 0:01:07]} Bh4 {[%emt 0:04:32]} 21. Qe2 {[%emt 0:01:46]} Bg3 {[%emt 0:04:02]} 22. Bd4 {[%emt 0:06:34]} Bxf4 {[%emt 0:00:39]} 23. Nxf4 {[%emt 0:00:11]} Qg5 {[%emt 0:04:29]} 24. Qe3 {[%emt 0:02:48]} Qh4 {[%emt 0:00:49]} 25. Rac1 {[%emt 0:03:18]} Rfc8 {[%emt 0:01:33]} 26. Rxc8+ {[%emt 0:09:24]} Rxc8 {[%emt 0:00:01]} 27. Qf3 {[%emt 0:00:23]} Qe7 {[%emt 0:01:05]} 28. Nh5 {[%emt 0:01:11]} f6 {[%emt 0:00:15]} 29. Qg3 {[%emt 0:00:34]} Kh8 {[%emt 0:00:29]} 30. Be3 {[%emt 0:02:23]} d5 {[%emt 0:01:22]} 31. exd5 {[%emt 0:01:47]} Bxd5 {[%emt 0:00:01]} 32. Re1 {[%emt 0:00:22]} Qf7 {[%emt 0:00:38]} 33. Nf4 {[%emt 0:00:15]} Bb7 {[%emt 0:00:46]} 34. Qf2 {[%emt 0:01:23]} Ne5 {[%emt 0:00:44]} 35. Bd4 {[%emt 0:02:19]} Ng6 {[%emt 0:00:30]} 36. Nxg6+ {[%emt 0:06:10]} hxg6 {[%emt 0:00:42]} 1/2-1/2

[Event "Panchenko Memorial-B 2021"]
[Site "Chelyabinsk"]
[Date "2021.09.18"]
[Round "6.5"]
[White "Gevorgyan, Maria"]
[Black "Guseva, Marina"]
[Result "1-0"]
[ECO "B90"]
[WhiteElo "2233"]
[BlackElo "2418"]
[Annotator "NA"]
[PlyCount "59"]
[EventDate "2021.09.13"]
[EventType "swiss"]
[EventCountry "RUS"]
[SourceTitle "playchess.com"]
[Source "ChessBase"]
[SourceQuality "1"]
[TimeControl "5400+30"]

1. e4 {[%emt 0:00:03]} c5 {[%emt 0:00:03]} 2. Nf3 {[%emt 0:00:06]} d6 {[%emt 0:00:04]} 3. d4 {[%emt 0:00:04]} cxd4 {[%emt 0:00:04]} 4. Nxd4 {[%emt 0:00:05]} Nf6 {[%emt 0:00:03]} 5. Nc3 {[%emt 0:00:06]} a6 {[%emt 0:00:04]} 6. h4 {[%emt 0:00:06]} e5 {[%emt 0:00:03]} 7. Nb3 {[%emt 0:00:04]} Be6 {[%emt 0:00:06]} 8. f4 {[%emt 0:00:13]} g6 {[%emt 0:00:06]} 9. Be2 {[%emt 0:00:17]} Nc6 {[%emt 0:05:01]} 10. g4 {[%emt 0:00:51]} h6 {[%emt 0:00:07]} 11. f5 {[%emt 0:00:38]} gxf5 {[%emt 0:03:30]} 12. gxf5 {[%emt 0:00:09]} Bxb3 {[%emt 0:02:02]} 13. axb3 {[%emt 0:00:07]} Qb6 {[%emt 0:09:12]} 14. Bf1 {[%emt 0:37:01]} (14. Kf1 $11) 14... Rg8 $1 {[%emt 0:20:47]} 15. Qf3 {[%emt 0:08:00]} Nd4 $17 {[%emt 0:14:49]} 16. Qd3 {[%emt 0:07:47]} Rg3 {[%emt 0:14:00]} 17. Qxg3 {[%emt 0:00:17]} Nxc2+ {[%emt 0:00:04]} 18. Kd1 {[%emt 0:00:05]} Nxa1 {[%emt 0:00:13]} 19. Bc4 {[%emt 0:00:11]} Qd4+ {[%emt 0:07:13]} 20. Ke2 {[%emt 0:08:34]} Nc2 {[%emt 0:02:52]} 21. Rd1 {[%emt 0:12:29]} Qc5 {[%emt 0:00:06]} 22. Nd5 {[%emt 0:11:00]} Nxd5 {[%emt 0:00:15]} 23. Bxd5 {[%emt 0:02:09]} Nb4 {[%emt 0:06:28]} 24. Bxf7+ {[%emt 0:07:56]} Kxf7 {[%emt 0:00:46]} 25. Qg6+ {[%emt 0:00:00]} Ke7 {[%emt 0:00:05]} 26. Be3 {[%emt 0:00:06]} Qb5+ {[%emt 0:04:29]} 27. Kf3 {[%emt 0:00:02]} Nd3 {[%emt 0:04:13]} 28. Qe6+ {[%emt 0:01:19]} Kd8 {[%emt 0:00:04]} 29. Qf7 {[%emt 0:00:04]} Qe8 {[%emt 0:05:54]} 30. Bb6+ {[%emt 0:00:06]} 1-0

[Event "Panchenko Memorial-B 2021"]
[Site "Chelyabinsk"]
[Date "2021.09.19"]
[Round "7.2"]
[White "Charochkina, Daria"]
[Black "Gevorgyan, Maria"]
[Result "1-0"]
[ECO "B20"]
[WhiteElo "2307"]
[BlackElo "2233"]
[Annotator "ChessBase"]
[PlyCount "59"]
[EventDate "2021.09.13"]
[EventType "swiss"]
[EventCountry "RUS"]
[SourceTitle "playchess.com"]
[Source "ChessBase"]
[SourceQuality "1"]
[TimeControl "5400+30"]

1. e4 {[%emt 0:03:25]} c5 {[%emt 0:00:06]} 2. Na3 {[%emt 0:00:04]} Nc6 {[%emt 0:00:07]} 3. Bb5 {[%emt 0:00:03]} g6 {[%emt 0:07:04]} 4. Nf3 {[%emt 0:00:14]} Bg7 {[%emt 0:02:53]} 5. O-O {[%emt 0:00:08]} Nf6 {[%emt 0:00:29]} 6. Re1 {[%emt 0:00:10]} O-O {[%emt 0:00:33]} 7. c3 {[%emt 0:00:07]} a6 {[%emt 0:01:16]} 8. Bxc6 {[%emt 0:01:17]} dxc6 {[%emt 0:03:24]} 9. h3 {[%emt 0:06:21]} Nd7 {[%emt 0:06:09]} 10. e5 {[%emt 0:15:14]} f6 {[%emt 0:06:55]} 11. d4 {[%emt 0:28:20]} cxd4 {[%emt 0:05:12]} 12. Qb3+ {[%emt 0:00:14]} Kh8 {[%emt 0:00:05]} 13. cxd4 {[%emt 0:01:48]} Nb6 {[%emt 0:02:13]} 14. Nc4 {[%emt 0:00:59]} Nd5 {[%emt 0:00:09]} 15. Bd2 {[%emt 0:01:17]} Rb8 {[%emt 0:07:11]} 16. Rac1 {[%emt 0:03:35]} g5 {[%emt 0:02:59]} 17. e6 {[%emt 0:05:31]} Qc7 {[%emt 0:18:59]} 18. a4 {[%emt 0:03:12]} b6 {[%emt 0:03:25]} 19. Ne3 {[%emt 0:03:40]} Nxe3 {[%emt 0:07:54]} 20. Rxe3 {[%emt 0:00:19]} Rd8 {[%emt 0:02:14]} 21. a5 {[%emt 0:02:23]} bxa5 {[%emt 0:03:02]} 22. Bxa5 {[%emt 0:00:58]} Qa7 {[%emt 0:04:16]} 23. Qxb8 {[%emt 0:04:27]} Qxb8 {[%emt 0:00:08]} 24. Bxd8 {[%emt 0:00:01]} Qd6 {[%emt 0:02:10]} 25. Bxe7 {[%emt 0:00:02]} Qxe7 {[%emt 0:00:31]} 26. d5 {[%emt 0:00:01]} c5 {[%emt 0:05:33]} 27. Nd4 {[%emt 0:01:04]} Bf8 {[%emt 0:00:56]} 28. Nf5 {[%emt 0:01:17]} Qe8 {[%emt 0:02:16]} 29. Rce1 {[%emt 0:06:03]} Bb7 {[%emt 0:03:40]} 30. e7 {[%emt 0:01:36]} 1-0